fUSD/lending_fUSD_20250503
["ID","MTS","AMOUNT","RATE_DAILY","PERIOD"]
[359684685,1746250246463,-450.0,0.00019847,2]
[359684687,1746250246472,-450.0,0.00019847,2]
[359684689,1746250246481,-450.0,0.00019847,2]
[359684691,1746250246491,-567.27,0.00019847,2]
[359684693,1746250246499,-1075.83,0.00019847,2]
[359684695,1746250246509,-450.0,0.00019847,2]
[359684697,1746250246518,-450.0,0.00019847,2]
[359684699,1746250246527,-450.0,0.00019847,2]
[359684701,1746250246536,-450.0,0.00019847,2]
[359684703,1746250246545,-450.0,0.00019847,2]
[359684704,1746250246555,-450.0,0.00019847,2]
[359684706,1746250246566,-545.5843728,0.00019847,2]
[359684707,1746250246575,-491.5,0.00019847,2]
[359684708,1746250246584,-450.0,0.00019847,2]
[359684709,1746250246593,-503.91,0.00019847,2]
[359684710,1746250246603,-450.0,0.00019847,2]
[359684711,1746250246613,-450.0,0.00019847,2]
[359684712,1746250246622,-450.0,0.00019847,2]
[359684713,1746250246634,-575.34,0.00019847,2]
[359684714,1746250246643,-205.70456391,0.00019847,2]
[359684715,1746250246653,-1437.18,0.00019847,2]
[359684716,1746250246663,-450.0,0.00019847,2]
[359684717,1746250246673,-450.0,0.00019847,2]
[359684718,1746250246683,-450.0,0.00019847,2]
[359684719,1746250246694,-450.0,0.00019847,2]
[359684720,1746250246703,-566.64,0.00019847,2]
[359684721,1746250246713,-450.0,0.00019847,2]
[359684722,1746250246722,-450.0,0.00019847,2]
[359684723,1746250246731,-712.59,0.00019847,2]
[359684724,1746250246740,-450.0,0.00019847,2]
[359684725,1746250246749,-450.0,0.00019847,2]
[359684726,1746250246759,-450.0,0.00019847,2]
[359684727,1746250246768,-483.0835328,0.00019847,2]
[359684728,1746250246777,-477.03160307,0.00019847,2]
[359684729,1746250246787,-450.0,0.00019847,2]
[359684730,1746250246796,-450.0,0.00019847,2]
[359684731,1746250246807,-450.0,0.00019847,2]
[359684732,1746250246816,-464.14593802,0.00019847,2]
[359684733,1746250246826,-503.9,0.00019847,2]
[359684734,1746250246836,-450.0,0.00019847,2]
[359684735,1746250246846,-450.0,0.00019847,2]
[359684736,1746250246856,-850.24,0.00019847,2]
[359684737,1746250246865,-551.57,0.00019847,2]
[359684738,1746250246875,-450.0,0.00019847,2]
[359684739,1746250246886,-545.69,0.00019847,2]
[359684740,1746250246896,-450.0,0.00019847,2]
[359684741,1746250246905,-450.0,0.00019847,2]
[359684742,1746250246914,-652.98,0.00019847,2]
[359684743,1746250246924,-450.0,0.00019847,2]
[359684744,1746250246934,-450.0,0.00019847,2]
[359684745,1746250246943,-612.19,0.00019847,2]
[359684746,1746250246952,-450.0,0.00019847,2]
[359684747,1746250246961,-450.0,0.00019847,2]
[359684748,1746250246971,-450.0,0.00019847,2]
[359684749,1746250246980,-450.0,0.00019847,2]
[359684750,1746250246990,-450.0,0.00019847,2]
[359684751,1746250247003,-450.0,0.00019847,2]
[359684752,1746250247012,-450.0,0.00019847,2]
[359684753,1746250247022,-450.0,0.00019847,2]
[359684754,1746250247031,-585.04,0.00019847,2]
[359684755,1746250247041,-450.0,0.00019847,2]
[359684756,1746250247050,-699.18,0.00019847,2]
[359684757,1746250247059,-1720.83,0.00019847,2]
[359684758,1746250247069,-450.0,0.00019847,2]
[359684759,1746250247078,-450.0,0.00019847,2]
[359684760,1746250247088,-450.0,0.00019847,2]
[359684761,1746250247097,-450.0,0.00019847,2]
[359684762,1746250247107,-450.0,0.00019847,2]
[359684763,1746250247116,-450.0,0.00019847,2]
[359684764,1746250247126,-450.0,0.00019847,2]
[359684765,1746250247135,-752.0,0.00019847,2]
[359684766,1746250247144,-450.0,0.00019847,2]
[359684767,1746250247154,-585.16,0.00019847,2]
[359684768,1746250247163,-450.0,0.00019847,2]
[359684769,1746250247173,-742.65,0.00019847,2]
[359684770,1746250247182,-450.0,0.00019847,2]
[359684771,1746250247191,-450.0,0.00019847,2]
[359684772,1746250247200,-450.0,0.00019847,2]
[359684773,1746250247210,-450.0,0.00019847,2]
[359684774,1746250247219,-450.0,0.00019847,2]
[359684775,1746250247229,-755.25,0.00019847,2]
[359684776,1746250247238,-663.64,0.00019847,2]
[359684777,1746250247247,-450.0,0.00019847,2]
[359684778,1746250247257,-450.0,0.00019847,2]
[359684779,1746250247266,-450.0,0.00019847,2]
[359684780,1746250247276,-486.75,0.00019847,2]
[359684781,1746250247285,-450.0,0.00019847,2]
[359684782,1746250247295,-450.0,0.00019847,2]
[359684783,1746250247304,-450.0,0.00019847,2]
[359684784,1746250247313,-450.0,0.00019847,2]
[359684785,1746250247323,-1168.72,0.00019847,2]
[359684786,1746250247332,-450.0,0.00019847,2]
[359684787,1746250247341,-450.0,0.00019847,2]
[359684788,1746250247351,-498.21,0.00019847,2]
[359684789,1746250247360,-450.0,0.00019847,2]
[359684790,1746250247369,-331.60792449,0.00019847,2]
[359684791,1746250247384,-450.0,0.00019847,2]
[359684792,1746250247393,-450.0,0.00019847,2]
[359684793,1746250247402,-365.0454029,0.00019847,2]
[359684794,1746250247412,-450.0,0.00019847,2]
[359684795,1746250247421,-450.0,0.00019847,2]
[359684796,1746250247430,-450.0,0.00019847,2]
[359684797,1746250247439,-450.0,0.00019847,2]
[359684798,1746250247448,-450.0,0.00019847,2]
[359684799,1746250247457,-450.0,0.00019847,2]
[359684800,1746250247466,-471.32532163,0.00019847,2]
[359684801,1746250247475,-450.0,0.00019847,2]
[359684802,1746250247484,-993.17,0.00019847,2]
[359684803,1746250247493,-450.0,0.00019847,2]
[359684804,1746250247502,-450.0,0.00019847,2]
[359684805,1746250247511,-450.0,0.00019847,2]
[359684806,1746250247521,-450.0,0.00019847,2]
[359684807,1746250247530,-1432.92,0.00019847,2]
[359684808,1746250247539,-497.75,0.00019847,2]
[359684809,1746250247548,-604.28,0.00019847,2]
[359684810,1746250247557,-450.0,0.00019847,2]
[359684811,1746250247566,-450.0,0.00019847,2]
[359684812,1746250247575,-450.0,0.00019847,2]
[359684813,1746250247584,-450.0,0.00019847,2]
[359684814,1746250247593,-1648.11,0.00019847,2]
[359684815,1746250247601,-450.0,0.00019847,2]
[359684816,1746250247611,-680.06,0.00019847,2]
[359684817,1746250247621,-450.0,0.00019847,2]
[359684818,1746250247631,-450.0,0.00019847,2]
[359684819,1746250247641,-560.08,0.00019847,2]
[359684820,1746250247650,-450.0,0.00019847,2]
[359684821,1746250247659,-632.47,0.00019847,2]
[359684822,1746250247669,-450.0,0.00019847,2]
[359684823,1746250247679,-450.0,0.00019847,2]
[359684824,1746250247689,-450.0,0.00019847,2]
[359684825,1746250247699,-450.0,0.00019847,2]
[359684826,1746250247709,-450.0,0.00019847,2]
[359684827,1746250247719,-450.0,0.00019847,2]
[359684828,1746250247728,-450.0,0.00019847,2]
[359684829,1746250247740,-450.0,0.00019847,2]
[359684830,1746250247750,-450.0,0.00019847,2]
[359684831,1746250247759,-450.0,0.00019847,2]
[359684832,1746250247768,-463.62,0.00019847,2]
[359684833,1746250247779,-450.0,0.00019847,2]
[359684834,1746250247791,-977.42,0.00019847,2]
[359684835,1746250247803,-450.0,0.00019847,2]
[359684836,1746250247813,-450.0,0.00019847,2]
[359684837,1746250247825,-450.0,0.00019847,2]
[359684838,1746250247835,-818.31,0.00019847,2]
[359684839,1746250247845,-450.0,0.00019847,2]
[359684840,1746250247855,-775.19,0.00019847,2]
[359684841,1746250247865,-450.0,0.00019847,2]
[359684842,1746250247875,-450.0,0.00019847,2]
[359684843,1746250247884,-450.0,0.00019847,2]
[359684844,1746250247895,-450.0,0.00019847,2]
[359684845,1746250247906,-977.16,0.00019847,2]
[359684846,1746250247915,-450.0,0.00019847,2]
[359684847,1746250247924,-2480.99,0.00019847,2]
[359684848,1746250247933,-450.0,0.00019847,2]
[359684849,1746250247942,-450.0,0.00019847,2]
[359684850,1746250247951,-1087.32,0.00019847,2]
[359684851,1746250247960,-450.0,0.00019847,2]
[359684852,1746250247970,-450.0,0.00019847,2]
[359684853,1746250247981,-808.75,0.00019847,2]
[359684854,1746250247990,-450.0,0.00019847,2]
[359684855,1746250248002,-450.0,0.00019847,2]
[359684856,1746250248011,-450.0,0.00019847,2]
[359684857,1746250248021,-450.0,0.00019847,2]
[359684858,1746250248030,-450.0,0.00019847,2]
[359684859,1746250248042,-450.0,0.00019847,2]
[359684860,1746250248051,-745.52,0.00019847,2]
[359684861,1746250248060,-5216.27,0.00019847,2]
[359684862,1746250248069,-2238.11,0.00019847,2]
[359684863,1746250248079,-902.26,0.00019847,2]
[359684864,1746250248089,-462.88,0.00019847,2]
[359684865,1746250248098,-81628.11,0.00019847,2]
[359684866,1746250248107,-450.0,0.00019847,2]
[359684867,1746250248118,-450.0,0.00019847,2]
[359684868,1746250248127,-450.0,0.00019847,2]
[359684869,1746250248136,-548.9,0.00019847,2]
[359684870,1746250248145,-450.0,0.00019847,2]
[359684871,1746250248154,-450.0,0.00019847,2]
[359684872,1746250248164,-450.0,0.00019847,2]
[359684873,1746250248173,-450.0,0.00019847,2]
[359684874,1746250248182,-4831.13,0.00019847,2]
[359684875,1746250248191,-450.0,0.00019847,2]
[359684876,1746250248200,-450.0,0.00019847,2]
[359684877,1746250248210,-712.48,0.00019847,2]
[359684878,1746250248219,-450.0,0.00019847,2]
[359684879,1746250248228,-450.0,0.00019847,2]
[359684880,1746250248237,-27671.24,0.00019847,2]
[359684881,1746250248246,-450.0,0.00019847,2]
[359684882,1746250248256,-1076.72,0.00019847,2]
[359684883,1746250248266,-111044.15,0.00019847,2]
[359684884,1746250248276,-558.66,0.00019847,2]
[359684885,1746250248285,-1820.53,0.00019847,2]
[359684886,1746250248294,-588.96,0.00019847,2]
[359684887,1746250248304,-521.16,0.00019847,2]
[359684888,1746250248314,-465.22,0.00019847,2]
[359684889,1746250248323,-598.05,0.00019847,2]
[359684890,1746250248331,-450.0,0.00019847,2]
[359684891,1746250248340,-15516.38,0.00019847,2]
[359684892,1746250248350,-450.0,0.00019847,2]
[359684893,1746250248359,-677.78,0.00019847,2]
[359684894,1746250248368,-450.0,0.00019847,2]
[359684895,1746250248378,-2191.12,0.00019847,2]
[359684896,1746250248387,-450.0,0.00019847,2]
[359684897,1746250248396,-1395.96,0.00019847,2]
[359684898,1746250248406,-300.0,0.00019847,2]
[359684899,1746250248415,-604.02,0.00019847,2]
[359684900,1746250248424,-486.43,0.00019847,2]
[359684901,1746250248434,-450.0,0.00019847,2]
[359684902,1746250248443,-450.0,0.00019847,2]
[359684903,1746250248452,-450.0,0.00019847,2]
[359684904,1746250248461,-450.0,0.00019847,2]
[359684905,1746250248470,-450.0,0.00019847,2]
[359684906,1746250248479,-450.0,0.00019847,2]
[359684907,1746250248487,-569.96,0.00019847,2]
[359684908,1746250248496,-794.37,0.00019847,2]
[359684909,1746250248506,-450.0,0.00019847,2]
[359684910,1746250248515,-473.26684363,0.00019847,2]
[359684911,1746250248524,-450.0,0.00019847,2]
[359684912,1746250248533,-465.11,0.00019847,2]
[359684913,1746250248542,-454.53686391,0.00019847,2]
[359684914,1746250248551,-450.0,0.00019847,2]
[359684915,1746250248560,-450.0,0.00019847,2]
[359684916,1746250248569,-450.0,0.00019847,2]
[359684917,1746250248579,-486.12125161,0.00019847,2]
[359684918,1746250248588,-450.0,0.00019847,2]
[359684919,1746250248597,-1896.61,0.00019847,2]
[359684920,1746250248606,-525.84,0.00019847,2]
[359684921,1746250248615,-999.0,0.00019847,2]
[359684922,1746250248624,-450.0,0.00019847,2]
[359684923,1746250248633,-450.0,0.00019847,2]
[359684924,1746250248642,-667.6,0.00019847,2]
[359684925,1746250248651,-450.0,0.00019847,2]
[359684926,1746250248660,-3257.3,0.00019847,2]
[359684927,1746250248668,-460.4631633,0.00019847,2]
[359684928,1746250248678,-450.0,0.00019847,2]
[359684929,1746250248687,-499.31,0.00019847,2]
[359684930,1746250248696,-576.9,0.00019847,2]
[359684931,1746250248705,-450.0,0.00019847,2]
[359684932,1746250248714,-472.15560293,0.00019847,2]
[359684933,1746250248723,-450.0,0.00019847,2]
[359684934,1746250248732,-2975.0,0.00019847,2]
[359684935,1746250248741,-2649.35,0.00019847,2]
[359684936,1746250248750,-588.25,0.00019847,2]
[359684937,1746250248759,-1521.3,0.00019847,2]
[359684938,1746250248768,-450.0,0.00019847,2]
[359684939,1746250248777,-601.02,0.00019847,2]
[359684940,1746250248786,-450.0,0.00019847,2]
[359684941,1746250248795,-450.0,0.00019847,2]
[359684942,1746250248804,-450.0,0.00019847,2]
[359684943,1746250248814,-450.0,0.00019847,2]
[359684944,1746250248823,-524.8,0.00019847,2]
[359684945,1746250248832,-450.0,0.00019847,2]
[359684946,1746250248841,-455.94,0.00019847,2]
[359684947,1746250248850,-849.23,0.00019847,2]
[359684948,1746250248859,-450.0,0.00019847,2]
[359684949,1746250248868,-827.05,0.00019847,2]
[359684950,1746250248877,-457.5,0.00019847,2]
[359684951,1746250248886,-1040.89,0.00019847,2]
[359684952,1746250248895,-450.0,0.00019847,2]
[359684953,1746250248904,-492.77701312,0.00019847,2]
[359684954,1746250248913,-491.81617772,0.00019847,2]
[359684955,1746250248923,-450.0,0.00019847,2]
[359684956,1746250248932,-450.0,0.00019847,2]
[359684957,1746250248942,-647.64,0.00019847,2]
[359684958,1746250248951,-450.96282215,0.00019847,2]
[359684959,1746250248960,-450.0,0.00019847,2]
[359684960,1746250248969,-488.1697104,0.00019847,2]
[359684961,1746250248979,-450.0,0.00019847,2]
[359684962,1746250248988,-450.0,0.00019847,2]
[359684963,1746250249002,-450.0,0.00019847,2]
[359684964,1746250249011,-1081.24,0.00019847,2]
[359684965,1746250249020,-477.38,0.00019847,2]
[359684966,1746250249030,-3995.65,0.00019847,2]
[359684967,1746250249039,-354.35488265,0.00019847,2]
[359684968,1746250249048,-450.0,0.00019847,2]
[359684969,1746250249057,-466.66,0.00019847,2]
[359684970,1746250249171,-450.0,0.00019847,2]
[359684971,1746250249181,-450.0,0.00019847,2]
[359684972,1746250249191,-450.0,0.00019847,2]
[359684973,1746250249200,-4104.92,0.00019847,2]
[359684974,1746250249210,-462.15,0.00019847,2]
[359684975,1746250249219,-450.0,0.00019847,2]
[359684976,1746250249228,-450.0,0.00019847,2]
[359684977,1746250249238,-450.0,0.00019847,2]
[359684978,1746250249247,-450.0,0.00019847,2]
[359684979,1746250249257,-450.0,0.00019847,2]
[359684980,1746250249266,-450.0,0.00019847,2]
[359684981,1746250249276,-4493.69,0.00019847,2]
[359684982,1746250249285,-450.0,0.00019847,2]
[359684983,1746250249294,-12500.0,0.00019847,2]
[359684984,1746250249303,-166.2109942,0.00019849,2]
[359684985,1746250249312,-330.48091671,0.00019849,2]
[359684986,1746250249321,-2628.68021111,0.00019853,2]
[359684987,1746250249331,-12500.0,0.00019856,2]
[359684988,1746250249340,-12500.0,0.00019865,2]
[359684989,1746250249349,-794.43630907,0.00019869,2]
[359684990,1746250249359,-500.0,0.00019873,2]
[359684991,1746250249368,-501.88937331,0.00019873,2]
[359684992,1746250249378,-513.96299407,0.00019873,2]
[359684993,1746250249387,-500.0,0.00019873,2]
[359684994,1746250249397,-500.0,0.00019873,2]
[359684995,1746250249406,-312.01437503,0.00019873,2]
[359684996,1746250249416,-500.0,0.00019873,2]
[359684997,1746250249425,-500.0,0.00019873,2]
[359684998,1746250249434,-500.0,0.00019873,2]
[359684999,1746250249444,-500.0,0.00019873,2]
[359685000,1746250249454,-500.0,0.00019873,2]
[359685001,1746250249464,-500.0,0.00019873,2]
[359685002,1746250249474,-500.0,0.00019873,2]
[359685003,1746250249483,-500.68219032,0.00019873,2]
[359685004,1746250249492,-503.89540493,0.00019873,2]
[359685005,1746250249502,-12500.0,0.00019874,2]
[359685006,1746250249511,-330.48091671,0.00019875,2]
[359685007,1746250249521,-12500.0,0.00019882,2]
[359685008,1746250249530,-159.19879139,0.00019886,2]
[359685009,1746250249540,-3253.30568586,0.00019889,2]
[359685010,1746250249549,-159.19879139,0.00019891,2]
[359685011,1746250249559,-12500.0,0.00019891,2]
[359685012,1746250249568,-159.19879139,0.00019895,2]
[359685013,1746250249578,-2069.37,0.000199,2]
[359685014,1746250249587,-2780.94450003,0.000199,2]
[359685015,1746250249596,-159.19879139,0.000199,2]
[359685016,1746250249606,-12500.0,0.000199,2]
[359685017,1746250249616,-166.2109942,0.000199,2]
[359685018,1746250249625,-2628.68021111,0.000199,2]
[359685019,1746250249634,-28599.50222021,0.000199,2]
[359685020,1746250249643,-3015.50152939,0.000199,3]
[359685021,1746250249652,-330.48091671,0.000199,2]
[359685022,1746250249662,-5152.27893101,0.000199,2]
[359685023,1746250249671,-203.9699087,0.000199,2]
[359685024,1746250249680,-33108.75591784,0.000199,2]
[359685025,1746250249690,-1903.07467553,0.000199,2]
[359685026,1746250249699,-2127.0,0.000199,2]
[359685027,1746250249708,-4093.995,0.00019915,2]
[359685028,1746250249718,-323.067,0.00019915,2]
[359685029,1746250249727,-514.0,0.0001997,2]
[359685030,1746250249736,-24428.0,0.00019973,2]
[359685031,1746250249746,-402.99682489,0.00019973,2]
[359685032,1746250249755,-162.45076163,0.00019973,2]
[359685033,1746250249765,-500.0,0.00019973,2]
[359685034,1746250249774,-544.89074326,0.00019973,2]
[359685035,1746250249784,-500.0,0.00019973,2]
[359685036,1746250249794,-501.21994559,0.00019973,2]
[359685037,1746250249804,-501.15741321,0.00019973,2]
[359685038,1746250249816,-502.58925245,0.00019973,2]
[359685039,1746250249827,-500.0,0.00019973,2]
[359685040,1746250249837,-959.0,0.00019973,2]
[359685041,1746250249848,-160.45164529,0.00019973,2]
[359685042,1746250249858,-160.20238278,0.00019973,2]
[359685043,1746250249867,-152.63342926,0.00019973,2]
[359685044,1746250249877,-303.17184781,0.00019973,2]
[359685045,1746250249886,-502.06385384,0.00019973,2]
[359685046,1746250249896,-500.0,0.00019973,2]
[359685047,1746250249906,-500.0,0.00019973,2]
[359685048,1746250249916,-243.83231524,0.00019973,2]
[359685049,1746250249926,-500.0,0.00019973,2]
[359685050,1746250249935,-500.0,0.00019973,2]
[359685051,1746250249945,-539.24803438,0.00019973,2]
[359685052,1746250249955,-500.0,0.00019973,2]
[359685053,1746250249965,-500.0,0.00019973,2]
[359685054,1746250249975,-500.8951883,0.00019973,2]
[359685055,1746250249984,-505.26039964,0.00019973,2]
[359685056,1746250249996,-517.26161729,0.00019973,2]
[359685057,1746250250006,-500.0,0.00019973,2]
[359685058,1746250250016,-38721.24492483,0.0001998,2]
[359685059,1746250250026,-1000.0,0.00019985,2]
[359685060,1746250250036,-1000.0,0.00019985,2]
[359685061,1746250250046,-1000.0,0.00019985,2]
[359685062,1746250250056,-1000.0,0.00019985,2]
[359685063,1746250250067,-1000.0,0.00019985,2]
[359685064,1746250250078,-1026.39740553,0.00019985,2]
[359685065,1746250250089,-40665.28617599,0.00019985,2]
[359685066,1746250250099,-260524.7737841,0.00019986,2]
[359685067,1746250250108,-21729.6765739,0.00019986,2]
[359685068,1746250250118,-9340.5444448,0.00019986,2]
[359685069,1746250250128,-1233.29204468,0.0001999,2]
[359685070,1746250250138,-1233.29204468,0.0001999,2]
[359685071,1746250250148,-500.0,0.00019999,2]
[359685072,1746250250158,-679.71892541,0.00019999,2]
[359685073,1746250250168,-500.0,0.00019999,2]
[359685074,1746250250178,-500.0,0.00019999,2]
[359685075,1746250250188,-500.0,0.00019999,2]
[359685076,1746250250198,-312.85418671,0.00019999,2]
[359685077,1746250250207,-300.0,0.00019999,2]
[359685078,1746250250217,-300.0,0.00019999,2]
[359685079,1746250250226,-1001.1282,0.00019999,2]
[359685080,1746250250236,-66823.38330018,0.00019999,2]
[359685081,1746250250246,-3975.69203247,0.00019999,2]
[359685082,1746250250255,-267.56632987,0.0002,2]
[359685083,1746250250265,-606115.05961028,0.0002,2]
[359685084,1746250250275,-510306.52951118,0.0002,2]
[359685085,1746250250284,-15263.47336507,0.0002,4]
[359685086,1746250250293,-619643.49970266,0.0002,2]
[359685087,1746250250303,-1780.05270486,0.0002,2]
[359685088,1746250250312,-30000.0,0.0002,2]
[359685089,1746250250322,-1000.0,0.0002,2]
[359685090,1746250250331,-1000.0,0.0002,2]
[359685091,1746250250341,-1000.0,0.0002,2]
[359685092,1746250250350,-1000.0,0.0002,2]
[359685093,1746250250359,-1000.0,0.0002,2]
[359685094,1746250250369,-1000.0,0.0002,2]
[359685095,1746250250378,-1000.0,0.0002,2]
[359685096,1746250250387,-1000.0,0.0002,2]
[359685097,1746250250398,-1000.0,0.0002,2]
[359685098,1746250250407,-1000.0,0.0002,2]
[359685099,1746250250417,-1000.0,0.0002,2]
[359685100,1746250250427,-1000.0,0.0002,2]
[359685101,1746250250437,-1000.0,0.0002,2]
[359685102,1746250250447,-1000.0,0.0002,2]
[359685103,1746250250457,-1000.0,0.0002,2]
[359685104,1746250250467,-1000.0,0.0002,2]
[359685105,1746250250476,-1000.0,0.0002,2]
[359685106,1746250250485,-1000.0,0.0002,2]
[359685107,1746250250495,-1000.0,0.0002,2]
[359685108,1746250250505,-1000.0,0.0002,2]
[359685109,1746250250514,-1000.0,0.0002,2]
[359685110,1746250250523,-1000.0,0.0002,2]
[359685111,1746250250532,-1000.0,0.0002,2]
[359685112,1746250250542,-1000.0,0.0002,2]
[359685113,1746250250551,-1000.0,0.0002,2]
[359685114,1746250250560,-1000.0,0.0002,2]
[359685115,1746250250570,-1000.0,0.0002,2]
[359685116,1746250250579,-1000.0,0.0002,2]
[359685117,1746250250588,-1000.0,0.0002,2]
[359685118,1746250250598,-1000.0,0.0002,2]
[359685119,1746250250607,-1000.0,0.0002,2]
[359685120,1746250250616,-728.7354737,0.0002,2]
[359685121,1746250250626,-1566161.82308361,0.0002,2]
[359685122,1746250252938,-0.0148256,0.0002,2]
[359685123,1746250253165,173.050314,0.0003287,69]
[359685124,1746250253373,173.050314,0.0003287,68]
[359685125,1746250253955,173.050314,0.0003287,67]
[359685126,1746250274722,351.19,0.00017098,2]
[359685127,1746250274930,351.19,0.00019362,2]
[359685128,1746250278254,173.050314,0.0003287,66]
[359685129,1746250281041,173.050314,0.0003287,65]
[359685130,1746250283489,173.050314,0.0003287,64]
[359685131,1746250286368,173.050314,0.0003287,63]
[359685132,1746250289226,173.050314,0.0003287,62]
[359685133,1746250291825,173.050314,0.0003287,61]
[359685134,1746250294860,173.050314,0.0003287,60]
[359685135,1746250302228,12205.72469643,0.000328,60]
[359685136,1746250340810,254.4,0.00018949,2]
[359685137,1746250457377,250.0,0.00018834,7]
[359685138,1746250472879,643.84818668,0.0003287,60]
[359685139,1746250527207,216.64,0.00018836,2]
[359685140,1746250571893,250.0,0.00017,2]
[359685141,1746250572760,300.0,0.00019,2]
[359685142,1746250592872,1000.0,0.00018855,2]
[359685143,1746250616813,11746.5084,0.00019472,2]
[359685144,1746250624525,6504.58481517,0.00019473,2]
[359685145,1746250632420,5860.1691,0.00019472,2]
[359685146,1746250641554,37958.6622,0.00019472,2]
[359685147,1746250657509,36246.2726,0.00019472,2]
[359685148,1746250788182,467.7683,0.00019421,2]
[359685149,1746250795385,175.58625166,0.00019472,2]
[359685150,1746250887425,1569.71842551,0.00019472,2]
[359685151,1746250997490,-1200.0,0.00019519,2]
[359685152,1746250997514,-1569.71842542,0.0001952,2]
[359685153,1746250997537,-151.0,0.0001952,2]
[359685154,1746250997690,-250.0,0.00019526,2]
[359685155,1746250997718,-200.0,0.00019532,2]
[359685156,1746250997742,-200.0,0.00019544,2]
[359685157,1746250997765,-300.0,0.00019559,2]
[359685158,1746250997787,-207.4,0.0001956,2]
[359685159,1746250997809,-165.36177939,0.0001956,2]
[359685160,1746250997832,-668.65185757,0.0001956,2]
[359685161,1746250997855,-151.0,0.0001956,2]
[359685162,1746250997879,-1569.71842542,0.00019567,2]
[359685163,1746250997901,-500.0,0.0001957,2]
[359685164,1746250997933,-500.0,0.0001957,2]
[359685165,1746250997956,-500.0,0.0001957,2]
[359685166,1746250997984,-500.0,0.0001957,2]
[359685167,1746250998008,-500.0,0.0001957,2]
[359685168,1746250998031,-500.0,0.0001957,2]
[359685169,1746250998061,-500.0,0.0001957,2]
[359685170,1746250998085,-500.0,0.0001957,2]
[359685171,1746250998114,-500.0,0.0001957,2]
[359685172,1746250998139,-500.0,0.0001957,2]
[359685173,1746250998175,-500.0,0.0001957,2]
[359685174,1746250998199,-500.0,0.0001957,2]
[359685175,1746250998223,-500.0,0.0001957,2]
[359685176,1746250998253,-500.0,0.0001957,2]
[359685177,1746250998276,-500.0,0.0001957,2]
[359685178,1746250998308,-500.0,0.0001957,2]
[359685179,1746250998332,-500.0,0.0001957,2]
[359685180,1746250998362,-500.0,0.0001957,2]
[359685181,1746250998386,-500.0,0.0001957,2]
[359685182,1746250998411,-500.0,0.0001957,2]
[359685183,1746250998443,-500.0,0.0001957,2]
[359685184,1746250998467,-500.0,0.0001957,2]
[359685185,1746250998497,-500.0,0.0001957,2]
[359685186,1746250998521,-500.0,0.0001957,2]
[359685187,1746250998551,-500.0,0.0001957,2]
[359685188,1746250998575,-500.0,0.0001957,2]
[359685189,1746250998603,-500.0,0.0001957,2]
[359685190,1746250998626,-500.0,0.0001957,2]
[359685191,1746250998656,-500.0,0.0001957,2]
[359685192,1746250998679,-500.0,0.0001957,2]
[359685193,1746250998708,-500.0,0.0001957,2]
[359685194,1746250998734,-360.93142461,0.0001957,2]